Cogmind - Beta 17 @@@ ROGUE MODE // 2026.07.05 @ 22:04:05 Player: Scarlet Result: Destroyed by G-34 Mercenary with Small Laser Performance ------------- Evolutions (0) 0 Regions Visited (1) 200 Robots Destroyed (5) 25 Value Destroyed (118) 118 Prototype IDs (0) 0 Alien Tech Used (0) 0 Bonus (0) 0 TOTAL SCORE: 343 Bonus ------- None Cogmind --------- Core Integrity 0/250 Matter 289/300 Energy 88/100 System Corruption 0% Temperature Cool (6) Movement Walking (260) Ox2 Location -10/Materials Parts ------- > --- POWER (1) -------- (None) > --- PROPULSION (2) --- Aluminum Leg > --- UTILITY (2) ------ Large Storage Unit Targeting Computer > --- WEAPON (2) ------- Medium Laser > --- INVENTORY (15) --- Aluminum Leg Aluminum Leg Core Shielding Core Shielding Peak State ------------ > --- POWER ------------ Light Ion Engine > --- PROPULSION ------- Aluminum Leg Aluminum Leg > --- UTILITY ---------- Small Storage Unit Core Shielding > --- WEAPON ----------- EM Pulse Gun Grenade Launcher > --- INVENTORY -------- (None) [Rating: 7] Favorites ----------- Power Light Ion Engine Engine Light Ion Engine Propulsion Aluminum Leg Leg Aluminum Leg Utility Small Storage Unit Storage Small Storage Unit Processor Targeting Computer Protection Core Shielding Weapon EM Pulse Gun Energy Gun EM Pulse Gun Launcher Grenade Launcher Build | -11 -10 ------- Run | Yrd Mat Slots Evolved . | . . Power . | . . Propulsion . | . . Utility . | . . Weapon . | . . Parts Attached 13 | 5 8 Power 1 | 1 . Engine 1 | 1 . Core . | . . Reactor . | . . Propulsion 5 | 2 3 Treads . | . . Leg 5 | 2 3 Wheel . | . . Hover . | . . Flight . | . . Utility 4 | 1 3 Device . | . . Storage 2 | 1 1 Processor 1 | . 1 Hackware . | . . Protection 1 | . 1 Artifact . | . . Weapon 3 | 1 2 Energy Gun 2 | 1 1 Energy Cannon . | . . Ballistic Gun . | . . Ballistic Cannon . | . . Launcher 1 | . 1 Special Weapon . | . . Impact Weapon . | . . Slashing Weapon . | . . Piercing Weapon . | . . Special Melee Weapon . | . . Unidentified Prototypes . | . . Parts Lost 6 | . 6 Power 1 | . 1 Propulsion 3 | . 3 Utility . | . . Weapon 2 | . 2 Highest Loss Streak 3 | . 3 To Critical Strikes . | . . Average Backups 2 | . 2 Power . | . . Propulsion 1 | . 1 Utility 1 | . 1 Weapon . | . . Tool/Special . | . . Unused Backups 3 | . 3 Power . | . . Propulsion 2 | . 2 Utility 1 | . 1 Weapon . | . . Tool/Special . | . . Average Slot Usage (%) 78 | . 78 Engine 9 | . 9 Leg 26 | . 26 Storage 14 | . 14 Processor 7 | . 7 Protection 1 | . 1 Energy Gun 10 | . 10 Launcher 8 | . 8 Peak Build Rating 7 | 5 7 Average Rating 5 | 3 5 On Entrance 2 | . 5 Avg Prop Armor Cover (%) . | . . Naked Turns . | . . Heaviest Build 22 | 10 22 Greatest Support 20 | 20 20 Greatest Overweight (x) 2 | . 2 Average Overweight (x) . | . . Largest Inventory Capacity 15 | 8 15 Average Capacity 9 | 7 9 Most Carried 7 | . 7 Average Carried 2 | . 2 Final Capacity 15 | 8 15 Final Carried 4 | . 4 Class Distribution -------------------- 100% | Mutant Dominant Class ---------------- Mutant | -10/Materials Resources | -11 -10 ----------- Run | Yrd Mat Matter Collected 262 | 210 52 Remotely . | . . Salvage Created 88 | . 88 Parts 7 | . 7 Haulers Intercepted . | . . Recyclers Shooed . | . . Parts Field Recycled . | . . Retrieved Matter . | . . Parts Self-Destructed . | . . Prevented . | . . Parts Restored . | . . Kills | -11 -10 ------- Run | Yrd Mat Combat Hostiles Destroyed 5 | . 5 Melee 1 | . 1 Guns 1 | . 1 AOE 3 | . 3 Classes Destroyed 2 | . 2 Swarmer 3 | . 3 Grunt 2 | . 2 Best Kill Streak 3 | . 3 Combat Bots Only 3 | . 3 Max Kills in Single Turn 2 | . 2 Gunslinging . | . . Exploded 2 | . 2 Melee 1 | . 1 Uniques/NPCs Destroyed . | . . Combat | -11 -10 -------- Run | Yrd Mat Hostile Shots Fired 98 | . 98 Missed 30 | . 30 Hits 68 | . 68 Projectile 68 | . 68 Damage Taken 860 | . 860 Core 250 | . 250 Absorbed by Shields . | . . Core Remaining (%) 100 | 100 . Volleys Fired 25 | . 25 Largest 1 | . 1 Hottest 40 | . 40 Shots Fired 25 | . 25 Gun 25 | . 25 Cannon . | . . Launcher . | . . Special . | . . Kinetic . | . . Thermal . | . . Explosive . | . . Electromagnetic 25 | . 25 Robot Hit Streak 3 | . 3 Robot Miss Streak 5 | . 5 Penetration Max . | . . Secondary Targets . | . . Shots Hit Robots 11 | . 11 Core Hits 8 | . 8 Critical Kills . | . . Critical Parts Destroyed . | . . Critical Strikes . | . . Melee Attacks . | . . Impact . | . . Slashing . | . . Piercing . | . . Sneak Attacks . | . . Combat Hostiles . | . . Follow-up Attacks . | . . Damage Inflicted 483 | . 483 Guns 144 | . 144 Cannons . | . . Explosions 292 | . 292 Melee . | . . Ramming 47 | . 47 Kinetic . | . . Thermal 59 | . 59 Explosive 233 | . 233 Electromagnetic 144 | . 144 Impact . | . . Slashing . | . . Piercing . | . . Highest Corruption . | . . Average Corruption . | . . Corruption Purged . | . . Corruption Blocked . | . . Overload Shots . | . . Overflow Damage 40 | . 40 Projectiles . | . . Explosions 40 | . 40 Melee . | . . Knockbacks . | . . Impact . | . . Kinetic . | . . Secondary . | . . Self-Inflicted Damage 102 | . 102 Shots 2 | . 2 Rammed 1 | . 1 Targets Rammed 21 | . 21 Kicked 20 | . 20 Crushed . | . . Highest Temperature 19 | . 19 Average Temperature 10 | . 10 Received Heat Transfer 405 | . 405 Siege Activations . | . . Martial Activations . | . . Shielding Activations . | . . Robots Disrupted . | . . Combat Hostiles . | . . Robots Corrupted . | . . Combat Hostiles . | . . Parts Fried . | . . Impact Corruptions . | . . Robots Melted . | . . Combat Hostiles . | . . Parts Melted . | . . Heat Transferred 100 | . 100 Parts Sabotaged . | . . Parts Stolen . | . . Parts Stripped . | . . Power Chain Reactions 2 | . 2 Alert | -11 -10 ------- Run | Yrd Mat Maximum Alert Level . | . . Low Security (%) 100 | 100 100 Level 1 . | . . Level 2 . | . . Level 3 . | . . Level 4 . | . . Level 5 . | . . High Security . | . . Max Security . | . . Peak Influence 109 | . 109 Initial . | . . Average 22 | . 24 Influence Increases 193 | . 193 Destroy 0b10 Robot/C 100 | . 100 Destroy Leader 30 | . 30 Successful Hack 4 | . 4 Disable Machine 30 | . 30 Destroy Structure 29 | . 29 Influence Decreases 168 | . 168 Time Decay 108 | . 108 Lost Part 60 | . 60 Squads Dispatched 4 | . 4 Investigation 3 | . 3 Extermination . | . . Reinforcement 1 | . 1 Assault . | . . Garrison . | . . Intercept . | . . Searches Triggered . | . . Construction Impeded . | . . Haulers Reinforced . | . . Active Scanning Responses . | . . Cargo Convoy Interrupts . | . . Stealth | -11 -10 --------- Run | Yrd Mat Distress Signals 3 | . 3 Communications Jammed . | . . Distress Signals . | . . Times Spotted 19 | . 19 Peak Tracking Total 8 | . 8 Tactical Retreats . | . . Traps | -11 -10 ------- Run | Yrd Mat Traps Triggered 1 | . 1 Indirectly . | . . Trap Hack Attempts . | . . Triggered . | . . Disarmed . | . . Reprogrammed . | . . Reused . | . . Traps Extracted . | . . Installed . | . . Triggered . | . . Machines | -11 -10 ---------- Run | Yrd Mat Machines Disabled 2 | . 2 Max in Single Turn 1 | . 1 Machines Repaired . | . . Machines Dismantled . | . . Machines Sabotaged . | . . Overloaded Fab Kills . | . . Hacking | -11 -10 --------- Run | Yrd Mat Machines Accessed 4 | . 4 Terminals 4 | . 4 Fabricators . | . . Repair Stations . | . . Recycling Units . | . . Scanalyzers . | . . Garrison Access . | . . Total Hacks 14 | . 14 Successful 2 | . 2 Failed 12 | . 12 Catastrophic 5 | . 5 Database Lockouts . | . . Manual 4 | . 4 Terminals 14 | . 14 Fabricators . | . . Repair Stations . | . . Recycling Units . | . . Scanalyzers . | . . Garrison Access . | . . Terminal Hacks 2 | . 2 Branch Access Points 1 | . 1 Emergency Access Points 1 | . 1 Fabricator Hacks . | . . Repair Station Hacks . | . . Recycling Unit Hacks . | . . Scanalyzer . | . . Garrison Access Hacks . | . . Unauthorized Hacks . | . . Terminals . | . . Fabricators . | . . Repair Stations . | . . Recycling Units . | . . Scanalyzers . | . . Garrison Access . | . . Data Cores Recovered . | . . Used . | . . Hacking Detections 4 | . 4 Full Trace Events 3 | . 3 Feedback Events . | . . Feedback Blocked . | . . Robot Schematics Acquired . | . . Robots Built . | . . Authchips . | . . Time . | . . Total Robot Build Rating . | . . Part Schematics Acquired . | . . Parts Built . | . . Authchips . | . . Time . | . . Total Part Build Rating . | . . Part Studies Acquired . | . . Parts Repaired . | . . Time . | . . Parts Recycled . | . . Recycled Matter . | . . Retrieved Matter . | . . Retrieved Components . | . . Parts Scanalyzed . | . . Part Schematics Acquired . | . . Parts Damaged . | . . Bothacking | -11 -10 ------------ Run | Yrd Mat Used RIF Installer . | . . Robots Hacked . | . . Non-combat . | . . Combat . | . . Robot Hacks Applied . | . . Relay Couplers Released . | . . Fabnet Peak Effective % . | . . Robots Rewired . | . . Allies Hacked . | . . Hacks Repelled . | . . Allies | -11 -10 -------- Run | Yrd Mat Total Allies . | . . Largest Group . | . . Highest-Rated Group . | . . Highest-Rated Ally . | . . Total Orders . | . . Ally Attacks . | . . Total Damage . | . . Kills . | . . Allies Corrupted . | . . Allies Melted . | . . Intel | -11 -10 ------- Run | Yrd Mat Active Infowar (turns) . | . . Robot Analysis Total . | . . Derelict Logs Recovered . | . . Drone Launches . | . . Drone Recoveries . | . . Exploration | -11 -10 ------------- Run | Yrd Mat Turns Passed 504 | 47 457 Spaces Moved 324 | 35 289 Core 3 | 3 . Treads . | . . Legs 321 | 32 289 Wheels . | . . Hover . | . . Flight . | . . Fastest Speed 50 | 50 120 Average Speed 124 | 114 125 Slowest Speed 260 | 120 260 Overloaded Moves . | . . Propulsion Burnouts . | . . Robots Hopped . | . . Potential Cave-ins . | . . Cave-ins Triggered . | . . Exploration Rate (%) 27 | 3 51 Regions Visited 1 Branch Regions . Pre-discovered Areas . | . . Known Exits Taken . | . . Unknown Exits Taken 1 | 1 . Scrap Searched . | . . Spaces Dug . | . . Terrain Destroyed 27 | . 27 Melee . | . . Projectile . | . . AOE 27 | . 27 Terrain Rammed . | . . Walls Destroyed . | . . Machines Disabled . | . . Actions | -11 -10 --------- Run | Yrd Mat Total 390 | 39 351 Wait . | . . Move 323 | 34 289 Hop . | . . Pick Up 5 | . 5 Fast Attach 9 | 5 4 Attach 2 | . 2 Detach 1 | . 1 Swap 2 | . 2 Drop 2 | . 2 Fire 25 | . 25 Melee . | . . Ram 1 | . 1 Kick 20 | . 20 Crush . | . . Escape Stasis . | . . Rewire . | . . Trap . | . . Miscellaneous . | . . Route ------- -11/Scrapyard -10/Materials (discovered 2 exits: [*Mat] / *Min) History --------- Turn | Location | Event 21 | -11/Scrapyard | Discovered new exit (range 15) 48 | -11/Scrapyard | Entered Materials 71 | -10/Materials | Identified exit to Mines 200 | -10/Materials | Discovered new exit (range 7) 311 | -10/Materials | Build established: Mutant 401 | -10/Materials | Lost 3 parts (1p2w) 422 | -10/Materials | Core integrity fell below 50% 486 | -10/Materials | Core integrity fell below 20% 505 | -10/Materials | Destroyed by G-34 Mercenary with Small Laser Last Messages --------------- 00427_ U-05 Engineer builds a Wall. 00428_ Kicked G-34 Mercenary out of the way. 00429_ Aluminum Leg destroyed. 00430_ R-06 Scavenger collects Aluminum Leg. 00430_ Slammed into G-34 Mercenary. 00431_ U-05 Engineer builds a Wall. 00434_ Acquired 2 matter. 00435_ Acquired 4 matter. 00437_ Acquired 8 matter. 00440_ U-05 Engineer lays Concrete. 00441_ U-05 Engineer builds a Wall. 00445_ O-16 Technician: "IFF HANDSHAKE FAILED. SECURING TERMINAL." 00445_ U-05 Engineer builds a Wall. 00452_ ALERT: Hostiles spotted, dispatching reinforcements to Terminal M005. 00458_ T-07 Excavator is excavating. 00463_ Aluminum Leg destroyed. 00463_ T-07 Excavator is excavating. 00498_ W-16 Scout sends out distress signal. 00503_ Acquired Med. Laser. Map ----- +----------------------------------------------------+ | ????# #??????????# !! = # | | ????# ########???# !! ### | | ????# ###########+####### # | | ????# %%% / / | | ????# %### # | | ????# """ """ """%!#?# # | | ????# """ """ """ #?## # | | ????# ## """ """ """ #??# = | | ????# ## #??# # # | | ????# ## | | ????# ####### | | ???##/####### | | ???# # ## | | ???# # #### ## | | ???# # ?? # | | ???# # ######## #"" # | | ???# # #??????? #!! # | | ???# # /??????? ?#"" > # | | ???# #g ##????????? ?#!! # | | ???# gg #?????????? ????"" # | | ???# #g #?????????? ?????? ?????? | | ???##########o ##????????????? ?????????? | | ???????????# #######+## ?????????? | | ???????????# "" w ????????? | | ???????????# T g ????????? | | ???????????# @ g ????????? | | ???????????# ########## ?????????? | | ???????????#######???????????????????????? | | ?????????????????????????????????????????? | | ?????????????????????????????????????????? | | ?????????????????????????????????????????? | | ?????????????????????????????????????????? | | ?????????????????????????????????????????? | | ?????????????????????????????????????????? | | ?????????????????????????????????????????? | | ?????????????????????????????????????????? | | ?????????????????????????????????????????? | | ?????????????????????????????????????????? | | ?????????????????????????????????????????? | | ?????????????????????????????????????????? | | ?????????????????????????????????????????? | | ?????????????????????????????????????????? | | ?????????????????????????????????????????? | | ?????????????????????????????????????????? | | ?????????????????????????????????????????? | | ?????????????????????????????????????????? | | ?????????????????????????????????????????? | | ?????????????????????????????????????????? | | ?????????????????????????????????????????? | | ?????????????????????????????????????????? | +----------------------------------------------------+ Best States ------------- Heat Dissipation 25 Energy Generation 10 Energy Capacity 125 Matter Stores 300 Matter Capacity 300 Sight Range 16 Terrain Scan Density 10 Core Shielding 20 Evasion (%) 55 Targeting Accuracy 5 Item Schematics ----------------- None Robot Schematics ------------------ None Fabricated ------------ Nothing Repaired ---------- Nothing Studied --------- None Alien Tech Used ----------------- None Achievements -------------- None Challenges ------------ None Game ------ Seed AntisysQuantumReconfigurator Manual? 0 Play Time 00:08:00 Cumulative 14.8 hours Start 2026.07.05 @ 21:57:25 End 2026.07.05 @ 22:04:05 Sessions 1 Manual Loads 0 Difficulty Rogue Special Mode None Game No. 19 Rogue 19 Adventurer 0 Explorer 0 Win Type - Total 0 Types 0/0/0/0/0/0/0/0/0/0 Lore% 6 Gallery% 16 Achievement% 15 Wizard Run 0 Options --------- Layout 0 ASCII 0 Keyboard 1 Movement Numpad Keybinds 0 Fullscreen 1 Font 18/SmallcapsGlow Map View 76x50 Zoom Use 0% Tactical HUD 1 Map Filters NONE Filters NONE Steam 1 RUN: a32aaa60-10b7-4f77-9c47-ea22e6c7e69c